[Event "FIDE WY-U16 Olympuad 2022"]
[Site "Nakhchivan"]
[Date "2022.10.03"]
[Round "2.25"]
[White "Hidalgo Diaz, Daniel"]
[Black "Jannatul, Ferdousi"]
[Result "1-0"]
[ECO "D45"]
[WhiteElo "2315"]
[BlackElo "1624"]
[Annotator "TA"]
[PlyCount "109"]
[EventDate "2022.10.02"]
[EventType "team-tourn"]
[EventCountry "AZE"]
[SourceTitle "playchess.com"]
[Source "ChessBase"]
[SourceQuality "1"]
[WhiteTeam "Cuba"]
[BlackTeam "Bangladesh"]
[WhiteTeamCountry "CUB"]
[BlackTeamCountry "BAN"]
[TimeControl "40/5400+30:1800+30"]

{[%evp 19,109,0,1,-5,12,0,30,28,37,-34,-29,-34,-28,-37,-48,-119,-42,-124,-3,-6,-15,0,6,-17,74,72,77,61,80,69,60,67,262,249,229,96,85,12,10,2,40,10,52,26,62,75,69,66,124,118,166,143,143,143,143,143,143,149,156,152,150,142,166,150,173,75,156,143,160,147,233,236,376,369,368,353,500,419,491,483,490,483,464,437,308,290,270,270,270,270,689,674]} 1. d4 {[%emt 0:00:02]} d5 {[%emt 0:00:13]} 2. Nf3 {[%emt 0:00:08]} e6 {[%emt 0:01:04]} 3. c4 {[%emt 0:00:23]} c6 {[%emt 0:00:30]} 4. e3 {[%emt 0:00:08]} Nf6 {[%emt 0:00:48]} 5. Nc3 {[%emt 0:00:25]} Nbd7 {[%emt 0:01:01]} 6. Qc2 {[%emt 0:00:37]} Bd6 {[%emt 0:01:24]} 7. g4 {[%emt 0:00:58]} Nxg4 {[%emt 0:07:25]} 8. Rg1 {[%emt 0:00:08]} Nxh2 {[%emt 0:00:52]} 9. Nxh2 {[%emt 0:00:09]} Bxh2 {[%emt 0:00:05]} 10. Rxg7 {[%emt 0:00:10]} Nf8 {[%emt 0:01:00][%cal Bd7f8,Bf8g6,Bg6h4,Bh4f5][%mdl 32]} 11. Rg2 {[%emt 0:00:09] D45: Semi-Slav: 5 e3.} Bd6 {[%emt 0:00:45] The main line 11...Bd6 scores better than 11...Bc7.} 12. e4 {[%emt 0:00:09]} dxc4 {[%emt 0:02:56]} (12... Ng6 $5 {[%cal Rg6h4]}) 13. Bxc4 {[%emt 0:00:53] White has an edge.} Ng6 {[%emt 0:01:19] [#]} 14. e5 $146 {[%emt 0:01:23]} ({White should play} 14. Bg5 $14 Be7 15. Be3) ({Predecessor:} 14. Bg5 Be7 15. Bxe7 Qxe7 16. O-O-O Bd7 17. e5 O-O-O 18. Ne4 Kb8 19. Qb3 h5 20. Rh2 {0-1 (40) Neves,B (2000)-Michal (2111) ICCF email 2010}) 14... Nh4 $15 {[%emt 0:04:28]} 15. Rg3 {[%emt 0:00:47]} Be7 {[%emt 0:00:55]} 16. Ne2 {[%emt 0:02:05]} Nf5 {[%emt 0:03:37]} 17. Rd3 {[%emt 0:01:39]} (17. Rf3 $15) 17... Bd7 {[%emt 0:06:23]} (17... b5 $17 18. Bb3 Bb7) 18. Bf4 {[%emt 0:02:19]} (18. Ng3 $15) 18... Qc7 {[%emt 0:07:25]} (18... Bb4+ $17 19. Bd2 Bxd2+ 20. Qxd2 Qh4) 19. O-O-O $11 {[%emt 0:00:10]} O-O-O {[%emt 0:01:47]} 20. Rc3 {[%emt 0:02:11]} Bb4 {[%emt 0:16:43]} 21. Rb3 {[%emt 0:00:11]} (21. Rh3 $5 {[%cal Rc4d3]}) 21... Ba5 {[%emt 0:07:14]} (21... c5 $11) 22. Bd3 $16 {[%emt 0:01:14] And now Bxf5 would win.} Ne7 {[%emt 0:03:16]} 23. Bg5 $1 {[%emt 0:00:37]} ({Reject} 23. Qc5 Nd5 $11) 23... Rde8 {[%emt 0:00:55]} 24. Bxe7 {[%emt 0:00:16] White has more active pieces. The black rooks are badly placed.} (24. Bxh7 Nd5 $11) 24... Rxe7 {[%emt 0:03:33]} 25. Qc5 {[%emt 0:00:02]} Be8 $2 {[%emt 0:09:18]} (25... Kd8 $14) 26. Qxa7 $18 {[%emt 0:00:20][%cal Ob3b7] Hoping for Rxb7!} b6 {[%emt 0:06:30] [#]} 27. Qa8+ {[%emt 0:01:27]} (27. Ba6+ $1 $18 {and the rest is easy.} Kd7 28. Bb7) 27... Qb8 $16 {[%emt 0:01:14]} 28. Qxb8+ {[%emt 0:00:08]} ({Much weaker is} 28. Ba6+ $6 Kc7 29. Qxb8+ Kxb8 $11) (28. Qa6+ $16 Qb7 29. Qc4) 28... Kxb8 $11 {[%emt 0:00:13]} 29. Be4 {[%emt 0:00:52]} h6 {[%emt 0:02:58][%cal Oc6c5]} 30. Rh1 {[%emt 0:01:16]} b5 {[%emt 0:05:44]} 31. Rbh3 {[%emt 0:01:10]} Bb6 {[%emt 0:03:31]} 32. Rxh6 {[%emt 0:00:54]} Rxh6 {[%emt 0:00:49]} 33. Rxh6 {[%emt 0:00:05] Strongly threatening Rh8.} Kc7 {[%emt 0:00:28]} (33... c5 $14) 34. b4 $16 {[%emt 0:01:10]} Kd8 {[%emt 0:00:30]} (34... Rd7 $16) 35. Rh8 {[%emt 0:00:09] Threatens to win with Bxc6.} Rc7 {[%emt 0:00:24]} 36. Kb2 {[%emt 0:00:51]} Ke7 {[%emt 0:00:29]} 37. Bc2 {[%emt 0:00:07]} Rd7 {[%emt 0:00:30]} 38. Kc3 {[%emt 0:00:02]} Rd8 {[%emt 0:00:33]} 39. Rh7 {[%emt 0:01:45]} Bd7 {[%emt 0:00:32]} 40. Ng3 {[%emt 0:02:32]} Be8 {[%emt 0:00:34] [#]} 41. Rh4 {[%emt 0:30:03]} Bd7 {[%emt 0:30:27]} 42. Kd3 {[%emt 0:04:04]} (42. Ne4 $18) 42... Rg8 {[%emt 0:00:32]} (42... Be8 $142) 43. Ke3 {[%emt 0:00:32]} Ra8 {[%emt 0:00:30]} 44. Bb3 {[%emt 0:00:01]} Rf8 {[%emt 0:00:33]} (44... Rd8 $16 45. Ne4 Be8) 45. Rh7 $18 {[%emt 0:01:02]} Ke8 {[%emt 0:00:27]} (45... Rd8 $142 46. Ne4 Rf8) 46. Ne4 {[%emt 0:00:12]} Bd8 {[%emt 0:00:30]} 47. Bd1 {[%emt 0:00:19]} Bc7 {[%emt 0:00:34]} (47... Be7 {might work better.} 48. Bh5 Kd8 49. Bxf7 Bxb4) 48. Bh5 {[%emt 0:00:14] aiming for Ng5.} Ke7 {[%emt 0:00:26]} 49. Ng5 {[%emt 0:00:15][%cal Rh5f7]} Be8 {[%emt 0:00:22]} 50. f4 {[%emt 0:01:11]} Bb6 {[%emt 0:00:37]} 51. Ke4 {[%emt 0:01:29]} Bc7 {[%emt 0:00:29]} 52. Bg6 {[%emt 0:01:26]} Bb6 {[%emt 0:00:33]} 53. f5 {[%emt 0:00:08]} exf5+ {[%emt 0:00:34]} 54. Bxf5 {[%emt 0:00:06]} Bc7 $2 {[%emt 0:00:25]} (54... Rg8) 55. Ne6 {[%emt 0:00:25] Weighted Error Value: White=0.20 (precise) /Black=0.40} 1-0